bitfinex-derivatives/quotes_ETHF0:USTF0_20251006
["timestamp","ask_amount","ask_price","bid_price","bid_amount"]
[1759758578462,0.258,4613.5,4613.3,3.2078]
[1759758578463,0.6427,4613.4,4613.3,3.2078]
[1759758580063,1.03275,4613.4,4613.3,3.2078]
[1759758580259,1.03275,4613.4,4613.1,0.7653815]
[1759758580260,1.03276,4613.2,4613.1,0.7653815]
[1759758580461,0.39007,4613.1,4613.0,0.00243803]
[1759758580767,1.03277,4613.1,4613.0,0.00243803]
[1759758580959,0.6427,4613.1,4613.0,0.76781953]
[1759758581164,0.6427,4613.1,4613.0,0.00243803]
[1759758581362,1.03277,4613.1,4613.0,0.00243803]
[1759758581563,1.03277,4613.1,4613.0,0.7701913]
[1759758581964,1.03277,4613.1,4613.0,0.00243803]
[1759758582566,0.258,4613.5,4613.0,0.00243803]
[1759758582567,0.6427,4613.4,4613.0,1.1994913]
[1759758582762,0.6427,4613.4,4613.3,0.39005]
[1759758582958,0.6427,4613.4,4613.3,1.15780327]
[1759758583170,0.258,4613.5,4613.3,0.39005]
[1759758583362,0.6427,4613.4,4613.3,0.39005]
[1759758583764,0.64804,4613.5,4613.2,4.75211067]
[1759758584068,0.6427,4613.4,4613.3,0.39005]
[1759758584666,0.6427,4613.9,4613.6,0.39003]
[1759758584866,0.6427,4613.6,4613.5,0.76738632]
[1759758585463,0.6427,4613.9,4613.3,1.37625067]
[1759758585672,0.6427,4614.2,4613.8,0.7673793]
[1759758585977,0.39,4613.9,4613.8,0.76717942]
[1759758586176,0.39,4613.9,4613.0,1.93693857]
[1759758586177,1.03275,4613.4,4613.3,1.15425067]
[1759758586465,0.6427,4613.3,4613.2,1.15425067]
[1759758586768,3.2078,4614.9,4613.6,0.6652]
[1759758586977,0.38995,4614.6,4614.2,0.6652]
[1759758587171,0.64796,4614.5,4614.2,0.6652]
[1759758587372,0.25546006,4615.0,4614.7,0.38993]
[1759758587770,0.64538006,4615.0,4614.5,2.20658801]
[1759758588073,0.64538006,4615.0,4614.6,40.8]
[1759758588274,0.64538006,4615.0,4614.6,41.18994]
[1759758588482,0.25546006,4615.0,4614.8,0.38992]
[1759758588772,0.00266006,4615.0,4614.9,3.8344]
[1759758588975,0.91176006,4615.0,4614.9,3.2078]
[1759758589171,0.91176006,4615.0,4614.9,4.35747992]
[1759758589564,0.91176006,4615.0,4614.9,3.2078]
[1759758590373,0.6608,4614.8,4614.6,42.33961992]
[1759758590675,0.00266006,4615.0,4614.8,1.01652]
[1759758590979,0.6608,4614.9,4614.8,3.2078]
[1759758591666,0.6608,4614.9,4614.8,3.4298]
[1759758592176,0.38997,4614.3,4614.2,4.35747992]
[1759758592376,1.05077,4614.3,4614.2,3.2078]
[1759758592871,1.05077,4614.3,4613.7,4.35747992]
[1759758592872,0.39001,4613.8,4613.7,4.35747992]
[1759758593076,1.05081,4613.8,4613.7,3.2078]
[1759758593374,0.6608,4613.8,4613.7,3.2078]
[1759758593776,0.2483,4614.0,4613.4,1.14967992]
[1759758594079,1.05085,4613.4,4613.2,3.2078]
[1759758594284,0.6608,4613.3,4613.2,3.2078]
[1759758594771,0.6608,4613.1,4613.0,0.00243803]
[1759758595967,5.8828,4613.1,4613.0,0.00243803]
[1759758596167,9.0906,4613.1,4613.0,0.00243803]
[1759758596367,0.39015,4612.3,4612.1,4.35747992]
[1759758596574,0.39015,4612.3,4611.8,0.222]
[1759758596575,1.05097,4611.9,4611.8,1.14967992]
[1759758596775,1.05099,4611.7,4611.6,3.2078]
[1759758596971,0.6608,4611.7,4611.6,3.2078]
[1759758597375,0.6628766,4611.7,4611.6,3.83651401]
[1759758597578,0.6628766,4611.7,4611.6,3.20991401]
[1759758598880,0.0020766,4611.7,4611.6,3.83651401]
[1759758599380,0.6628766,4611.7,4611.6,3.20991401]
[1759758599883,5.6628766,4611.7,4611.6,0.00211401]
[1759758600072,5.8848766,4611.7,4611.6,1.401e-05]
[1759758600273,0.6608,4610.9,4610.6,1.14967992]
[1759758600581,0.39026,4610.9,4610.6,1.14967992]
[1759758600783,0.6608,4610.7,4610.6,1.14967992]
[1759758601077,0.39022,4611.4,4610.6,1.01688]
[1759758601276,0.2240766,4611.7,4611.1,0.39023]
[1759758601277,0.3922766,4611.7,4611.1,0.39023]
[1759758601472,0.6608,4611.6,4610.9,3.2078]
[1759758601676,0.6608,4610.9,4610.8,0.222]
[1759758601976,0.6608,4610.7,4610.6,0.00271544]
[1759758602284,0.8828,4610.7,4610.6,0.00271544]
[1759758602478,0.97571,4610.6,4610.0,3.2078]
[1759758602680,0.2483,4610.5,4609.5,3.2078]
[1759758602882,0.6608,4609.6,4609.5,3.2078]
[1759758603485,0.6608,4609.2,4609.1,3.2078]
[1759758603880,0.63868,4609.5,4609.1,3.20966035]
[1759758603881,0.6608,4609.4,4609.1,3.20966035]
[1759758604078,0.6608,4609.4,4609.1,3.83626035]
[1759758604279,0.6608,4609.4,4609.1,3.20966035]
[1759758604473,0.6608,4609.4,4609.1,3.83626035]
[1759758604687,0.6608,4609.4,4609.2,0.6266]
[1759758605081,0.2483,4610.0,4609.1,3.20966035]
[1759758605283,0.6608,4609.2,4609.1,3.20966035]
[1759758605586,0.6608,4609.2,4609.1,0.00186035]
[1759758605783,5.6608,4609.2,4609.1,0.00186035]
[1759758606179,0.6608,4609.2,4609.1,0.00186035]
[1759758606378,1.0512,4609.2,4609.1,0.00186035]
[1759758606982,5.6608,4609.2,4609.1,0.00186035]
[1759758607183,0.8828,4609.2,4609.1,0.00186035]
[1759758607881,0.6608,4609.2,4609.1,0.00186035]
[1759758608083,0.6608,4609.2,4609.1,0.39227035]
[1759758608281,0.6608,4609.4,4609.1,4.22667035]
[1759758608786,0.86068,4609.5,4609.1,3.60007035]
[1759758608989,0.4703,4609.5,4609.1,3.60007035]
[1759758609177,0.6608,4609.3,4609.1,3.60007035]
[1759758609381,0.6608,4609.4,4609.2,0.3904]
[1759758609580,0.4703,4609.5,4609.3,0.39039]
[1759758609780,0.39039,4609.3,4609.1,3.20966035]
[1759758609986,0.6608,4609.2,4609.1,0.00186035]
[1759758610884,5.6608,4609.2,4609.1,0.00186035]
[1759758611287,0.6608,4609.2,4609.1,0.00186035]
[1759758611478,5.8828,4609.2,4609.1,0.00186035]
[1759758612888,5.8828,4609.2,4608.1,3.2078]
[1759758612889,0.97603,4609.1,4608.2,0.39048]
[1759758613186,0.39049,4608.1,4607.9,0.0217021]
[1759758613387,1.1311,4608.0,4607.9,0.0217021]
[1759758613783,0.8828,4608.0,4607.9,0.0217021]
[1759758613990,0.22379934,4608.0,4607.9,0.65085366]
[1759758614188,0.00179934,4608.0,4607.9,0.65085366]
[1759758614591,0.91089934,4608.0,4607.9,0.02425366]
[1759758615087,0.00179934,4608.0,4607.9,0.65085366]
[1759758615792,0.66259934,4608.0,4607.9,0.02425366]
[1759758615994,0.91089934,4608.0,4607.9,0.02425366]
[1759758617192,0.66259934,4608.0,4607.9,0.02425366]
[1759758617493,0.00179934,4608.0,4607.9,5.65085366]
[1759758618189,3.2078,4609.7,4608.4,0.6094]
[1759758618394,0.6192,4609.4,4609.3,0.39039]
[1759758618591,3.4298,4609.7,4609.6,0.39037]
[1759758618796,4.049,4609.7,4609.6,0.39037]
[1759758619193,0.8412,4609.7,4609.6,0.39037]
[1759758619389,0.620855,4609.7,4609.6,0.39037]
[1759758619790,0.6192,4609.4,4609.2,0.3904]
[1759758620093,0.6192,4609.4,4609.3,0.39039]
[1759758621992,0.001655,4609.7,4609.6,0.99977]
[1759758622390,0.001655,4609.7,4609.6,5.99977]
[1759758623185,0.6192,4610.5,4610.4,0.3903]
[1759758623391,0.61219,4611.8,4611.2,0.39023]
[1759758623592,0.222,4611.8,4611.2,0.39023]
[1759758623788,0.222,4611.8,4611.0,3.2078]
[1759758623789,0.6192,4611.4,4611.0,3.2078]
[1759758623988,0.2584,4611.0,4610.4,3.2078]
[1759758624298,0.6192,4610.8,4610.4,3.20939101]
[1759758624493,0.6192,4610.9,4610.4,3.20939101]
[1759758625193,0.00227296,4611.0,4610.9,0.99966]
[1759758625400,0.00227296,4611.0,4610.9,4.20746]
[1759758625591,0.00227296,4611.0,4610.9,3.2078]
[1759758625796,0.62147296,4611.0,4610.9,44.0078]
[1759758626291,0.00227296,4611.0,4610.9,3.8172]
[1759758626898,0.00227296,4611.0,4610.9,9.0392]
[1759758629295,0.00227296,4611.0,4610.9,8.8172]
[1759758629699,0.6192,4612.3,4612.1,0.99955]
[1759758630199,0.39011,4612.7,4612.5,0.39012]
[1759758630200,0.6192,4612.7,4612.5,0.39012]
[1759758630500,4.2171,4612.8,4612.3,0.39013]
[1759758630700,0.6192,4612.7,4612.5,0.39012]
[1759758630896,0.6192,4612.7,4612.5,0.99952]
[1759758631099,0.00240253,4612.8,4612.1,0.6094]
[1759758631294,0.00240253,4612.8,4612.5,3.2078]
[1759758631595,0.00240253,4612.8,4612.7,0.6094]
[1759758632495,0.00240253,4612.8,4612.7,41.4094]
[1759758632690,0.6192,4614.2,4614.0,0.38999]
[1759758632897,0.2584,4614.5,4613.2,0.97516]
[1759758632898,0.6192,4614.4,4614.3,0.6094]
[1759758633191,0.6192,4614.8,4614.4,0.38996]
[1759758633396,0.6192,4614.9,4614.4,0.222]
[1759758633690,0.0022709,4614.9,4614.6,0.6094]
[1759758633897,1.00913,4614.8,4614.6,0.6094]
[1759758634094,0.6192,4614.8,4614.5,3.59775]
[1759758634302,0.0022709,4614.9,4614.5,3.81975]
[1759758634492,0.6192,4614.8,4614.6,0.38994]
[1759758634694,0.0022709,4614.9,4614.8,0.38993]
[1759758634895,0.0022709,4614.9,4614.8,0.6094]
[1759758636396,0.0022709,4614.9,4614.8,0.8304]
[1759758637503,0.38982,4616.1,4615.5,1.04537]
[1759758637698,0.6584,4616.4,4615.7,3.2078]
[1759758637898,0.6584,4615.8,4615.7,3.2078]
[1759758638106,1.04829,4615.2,4615.1,44.0078]
[1759758638297,0.9063,4618.0,4617.5,0.3897]
[1759758638498,0.6584,4617.9,4617.5,0.058]
[1759758638701,0.6584,4617.9,4617.6,0.38969]
[1759758638897,0.6584,4617.9,4617.7,0.6555]
[1759758639101,0.6584,4617.8,4617.7,0.00243342]
[1759758639304,0.00152602,4618.0,4617.7,0.00243342]
[1759758639506,0.65992602,4618.0,4617.9,3.2078]
[1759758640707,1.04807,4617.8,4617.7,0.00243342]
[1759758641100,6.04807,4617.8,4617.7,3.42e-06]
[1759758641303,0.2479,4617.5,4616.3,0.221]
[1759758641504,0.6584,4617.1,4616.2,3.2078]
[1759758641710,0.2479,4617.0,4616.2,3.2078]
[1759758641900,0.2479,4617.0,4616.4,40.8]
[1759758642101,1.04818,4616.6,4616.4,40.8]
[1759758642303,0.6584,4616.5,4616.4,40.80280618]
[1759758643309,0.9063,4616.5,4616.4,0.00280618]
[1759758643815,4.1141,4616.5,4616.4,0.00280618]
[1759758644610,0.9063,4616.5,4616.4,0.00280618]
[1759758644812,0.38978,4616.6,4616.4,0.65830618]
[1759758645014,0.38975,4616.9,4616.4,1.04809618]
[1759758645205,0.38975,4617.0,4616.6,0.38977]
[1759758645413,0.38975,4617.0,4616.7,0.6555]
[1759758645609,0.38974,4617.1,4616.8,0.38976]
[1759758645911,0.38974,4617.1,4616.8,1.04526]
[1759758646211,0.97418,4617.9,4617.3,0.38972]
[1759758646212,0.38969,4617.7,4617.3,0.38972]
[1759758646414,0.38969,4617.6,4617.0,0.6555]
[1759758646613,0.38969,4617.6,4616.9,0.221]
[1759758646614,0.3897,4617.5,4617.2,0.38972]
[1759758646908,0.38971,4617.4,4617.3,0.6555]
[1759758647108,4.18198,4617.9,4616.6,3.59757]
[1759758647109,0.38973,4617.2,4616.6,3.2078]
[1759758647306,0.38976,4616.8,4616.6,3.8633]
[1759758647509,0.38976,4616.8,4614.0,9.91274]
[1759758647510,0.9063,4616.5,4616.1,3.2078]
[1759758648411,0.9063,4616.5,4615.7,4.0843]
[1759758648618,0.9063,4616.5,4615.7,3.2078]
[1759758649118,5.9063,4616.5,4615.3,40.8]
[1759758649415,0.6584,4616.5,4615.7,3.2078]
[1759758649609,0.5979,4617.4,4616.5,0.6174]
[1759758649914,0.6376,4617.5,4617.2,0.38972]
[1759758649915,0.3897,4617.5,4617.2,0.38972]
[1759758650113,0.221,4617.7,4617.0,0.2289]
[1759758650320,0.9876,4617.6,4617.2,40.8]
[1759758650618,0.61069,4617.7,4617.5,0.6174]
[1759758651317,0.61069,4617.7,4617.4,3.2078]
[1759758651318,0.3897,4617.6,4617.4,3.2078]
[1759758651514,0.3897,4617.6,4617.4,3.8252]
[1759758651714,0.3897,4617.6,4617.2,41.021]
[1759758651715,0.38971,4617.4,4617.2,40.8]
[1759758652215,0.5979,4617.6,4617.2,40.8]
[1759758652407,3.4492,4619.0,4618.5,0.38961]
[1759758652408,4.0471,4619.0,4618.5,0.38961]
[1759758652613,0.5979,4618.9,4618.7,3.2078]
[1759758652921,0.38955,4619.3,4618.7,4.21479]
[1759758653213,0.8393,4619.5,4618.7,4.21479]
[1759758653214,0.8393,4619.5,4618.9,0.38958]
[1759758653418,0.98747,4619.1,4618.8,40.8]
[1759758653610,0.24386432,4619.5,4618.8,40.8]
[1759758653611,0.5979,4618.9,4618.8,40.8]
[1759758653915,0.38966,4618.0,4617.7,3.2078]
[1759758654115,0.98756,4618.0,4617.7,3.8252]
[1759758654309,0.5979,4617.9,4617.8,40.8]
[1759758654609,0.98757,4617.8,4617.7,3.2078]
[1759758654813,0.5979,4617.4,4617.3,0.221]
[1759758655119,0.5979,4617.4,4617.3,41.021]
[1759758655318,0.5979,4618.2,4617.4,0.6174]
[1759758655524,0.3897,4617.5,4617.3,40.8]
[1759758655818,0.38978,4616.6,4616.4,0.00280618]
[1759758656114,0.5979,4616.5,4616.4,0.00280618]
[1759758656514,0.8393,4616.5,4616.4,0.00280618]
[1759758657114,0.5979,4616.5,4616.4,0.00280618]
[1759758657714,0.98768,4616.5,4616.4,0.00280618]
[1759758657915,1.22908,4616.5,4616.4,0.00280618]
[1759758659616,0.2414,4616.0,4615.0,3.2078]
[1759758659916,0.5979,4615.7,4615.0,3.59771]
[1759758660113,4.0471,4616.5,4615.1,0.6174]
[1759758660316,4.0471,4616.5,4615.0,3.4367]
[1759758660317,0.38983,4616.1,4615.6,0.38986]
[1759758660511,0.5979,4616.0,4615.6,0.61086]
[1759758660717,0.00246987,4616.0,4615.9,3.8252]
[1759758661117,0.00246987,4616.0,4615.9,8.8252]
[1759758661417,0.5979,4617.8,4617.0,0.6174]
[1759758661622,0.5979,4617.8,4617.7,3.2078]
[1759758661819,0.38966,4618.1,4617.7,3.8252]
[1759758662018,0.8189,4618.4,4617.7,3.8252]
[1759758662320,0.8189,4618.4,4617.7,3.2078]
[1759758662321,0.22375092,4618.4,4617.7,3.2078]
[1759758662520,0.5979,4618.3,4617.7,3.2078]
[1759758662913,0.00275092,4618.4,4618.2,0.38964]
[1759758663116,0.00275092,4618.4,4618.3,8.8252]
[1759758663428,0.00275092,4618.4,4618.3,3.8252]
[1759758663723,0.38969,4617.7,4617.4,0.76366474]
[1759758663918,0.38969,4617.7,4616.6,1.54442054]
[1759758663919,0.5979,4617.0,4616.8,3.2078]
[1759758664115,0.5979,4617.9,4616.9,0.8384]
[1759758664316,0.2414,4618.0,4616.8,3.2078]
[1759758664520,0.5979,4616.9,4616.8,3.2078]
[1759758664918,0.5979,4617.6,4616.8,3.2078]
[1759758665119,0.5979,4617.2,4616.8,4.0462]
[1759758665320,0.8393,4617.5,4616.8,3.2078]
[1759758665519,0.38974,4617.1,4616.8,3.4288]
[1759758665720,0.5979,4617.0,4616.8,3.2078]
[1759758665920,0.38974,4617.1,4616.8,3.2078]
[1759758666121,0.5979,4616.9,4616.8,3.2078]
[1759758666327,0.5979,4616.7,4616.3,3.2078]
[1759758666624,0.5979,4616.0,4615.7,3.2078]
[1759758666820,0.2414,4616.5,4615.7,3.2078]
[1759758666821,0.98774,4615.8,4615.7,3.2078]
[1759758667029,0.5979,4615.7,4615.6,0.00268663]
[1759758667219,0.5979,4616.4,4615.7,0.6174]
[1759758667420,0.38979,4616.5,4616.3,3.2078]
[1759758667722,0.38979,4616.5,4615.6,3.21048663]
[1759758667723,0.98775,4615.7,4615.6,3.21048663]
[1759758668118,0.2414,4616.0,4615.6,3.21048663]
[1759758668517,0.38985,4615.8,4615.6,3.21048663]
[1759758668718,0.5979,4615.7,4615.6,0.00268663]
[1759758669022,0.2414,4615.5,4615.0,3.2078]
[1759758669223,0.3899,4615.2,4615.0,3.2078]
[1759758669420,0.5979,4615.1,4615.0,3.2078]
[1759758670021,0.60070171,4615.1,4615.0,3.21057725]
[1759758670625,0.60070171,4615.1,4615.0,0.00277725]
[1759758670826,0.60070171,4615.1,4613.9,3.2078]
[1759758670827,0.2414,4614.5,4613.9,3.2078]
[1759758671128,0.38998,4614.2,4613.9,3.2078]
[1759758671319,0.5979,4614.1,4613.9,3.2078]
[1759758671518,0.8189,4614.7,4613.9,3.4288]
[1759758671725,3.2078,4615.2,4614.5,3.2078]
[1759758671920,0.5979,4614.6,4614.5,0.00280308]
[1759758672130,0.5979,4614.4,4613.4,3.2078]
[1759758672430,0.5979,4614.4,4614.0,3.2078]
[1759758672431,0.5979,4614.1,4614.0,3.2078]
[1759758672923,0.5979,4614.1,4612.8,0.6174]
[1759758672924,0.98797,4613.2,4612.8,0.6174]
[1759758673128,0.5979,4613.2,4612.8,0.61989517]
[1759758673432,0.39005,4613.4,4612.9,0.39008]
[1759758673619,0.98795,4613.4,4613.3,3.2078]
[1759758673929,0.5979,4612.9,4612.8,0.00249517]
[1759758675126,0.98799,4612.9,4612.8,0.00249517]
[1759758675829,5.98799,4612.9,4612.8,0.00249517]
[1759758676326,0.5979,4612.9,4612.8,0.00249517]
[1759758677522,0.5979,4611.8,4611.7,40.8]
[1759758677728,0.5979,4612.3,4611.7,41.19019]
[1759758677928,0.6046,4612.3,4612.1,3.2078]
[1759758678129,0.6046,4612.9,4612.1,3.2078]
[1759758678324,0.6046,4612.7,4612.1,3.2078]
[1759758678532,0.6046,4612.2,4612.1,3.20984708]
[1759758678835,0.6046,4612.2,4612.1,0.00204708]
[1759758679328,0.8256,4612.2,4612.1,0.00204708]
[1759758679528,0.39022,4611.3,4611.1,3.2078]
[1759758679727,0.6046,4611.2,4611.1,3.2078]
[1759758680127,0.6046,4611.5,4611.1,4.22113]
[1759758680327,0.2399,4612.0,4611.1,3.2078]
[1759758680529,0.6046,4611.9,4611.8,3.2078]
[1759758680833,0.99478,4611.9,4611.3,3.2078]
[1759758681033,0.6046,4611.9,4611.6,0.39019]
[1759758681335,0.6046,4611.7,4611.4,0.6231]
[1759758681531,0.6046,4611.7,4611.6,0.3902]
[1759758681927,0.39014,4612.3,4611.3,3.8309]
[1759758682236,0.39014,4612.3,4611.8,3.2078]
[1759758682237,0.6046,4612.1,4611.8,3.2078]
[1759758682439,0.6046,4612.1,4611.9,0.39017]
[1759758682932,0.6046,4612.1,4611.8,3.2078]
[1759758683128,0.221,4612.2,4611.8,3.59798]
[1759758683332,0.6046,4612.1,4611.9,0.39017]
[1759758683729,0.6046,4611.9,4611.8,3.2078]
[1759758685231,0.39023,4611.2,4611.1,0.00229884]
[1759758685432,1.21583,4611.2,4611.1,0.00229884]
[1759758685835,0.39031,4610.3,4610.1,0.39032]
[1759758686039,0.6046,4610.2,4610.1,0.39032]
[1759758686436,0.6046,4610.3,4609.5,3.2078]
[1759758686640,0.6046,4609.6,4609.5,3.2078]
[1759758686840,0.6046,4609.6,4609.5,3.21013685]
[1759758687044,0.2399,4610.0,4609.5,3.60050685]
[1759758687342,1.2159,4610.4,4609.6,0.6231]
[1759758687544,0.6046,4610.4,4610.2,0.39031]
[1759758687746,0.8256,4610.9,4610.7,0.39027]
[1759758687942,0.8256,4610.9,4610.7,3.2078]
[1759758688244,0.221,4610.9,4610.5,0.39029]
[1759758688441,0.221,4610.9,4609.8,1.19688]
[1759758688442,0.6046,4611.0,4610.9,0.39026]
[1759758688637,3.2078,4611.5,4611.3,0.39022]
[1759758688847,0.6046,4611.9,4611.0,0.6231]
[1759758688848,0.6046,4611.9,4611.7,0.39018]
[1759758689142,0.8445,4612.5,4612.1,0.39015]
[1759758689443,0.6046,4612.1,4611.9,0.39016]
[1759758689841,0.6046,4612.5,4612.1,0.6231]
[1759758690144,3.2078,4612.8,4612.1,0.6231]
[1759758690145,0.221,4612.6,4612.5,0.39011]
[1759758690346,0.221,4612.6,4612.3,0.39014]
[1759758690538,0.6046,4612.4,4611.4,3.2078]
[1759758690738,0.39018,4611.8,4611.3,0.39022]
[1759758690942,0.6046,4611.8,4611.3,0.39022]
[1759758691138,0.221,4611.9,4611.3,0.39022]
[1759758691443,0.221,4611.9,4610.9,3.2078]
[1759758691648,0.6046,4611.8,4610.9,3.2078]
[1759758691947,0.6046,4611.0,4610.9,3.2078]
[1759758693039,0.221,4611.2,4611.1,0.6231]
[1759758693449,0.39016,4612.1,4611.3,0.39022]
[1759758693746,0.39024,4611.2,4610.9,3.2078]
[1759758693942,0.6046,4611.0,4610.9,3.2078]
[1759758694147,0.8445,4611.0,4610.9,3.2078]
[1759758694344,0.8445,4611.0,4610.4,3.2078]
[1759758694345,1.23479,4610.5,4610.4,3.2078]
[1759758694549,0.6046,4609.9,4609.8,3.2078]
[1759758694749,0.8256,4609.9,4609.8,3.2078]
[1759758695044,0.221,4609.9,4609.5,0.00233685]
[1759758695252,0.39036,4609.7,4609.5,0.00233685]
[1759758695451,0.6207,4609.6,4609.5,0.00233685]
[1759758696449,0.6207,4609.6,4608.7,3.2078]
[1759758696648,0.6207,4608.8,4608.7,3.2078]
[1759758696944,0.221,4608.9,4608.7,3.59824]
[1759758697147,0.6207,4609.3,4608.7,3.59824]
[1759758697342,0.6207,4609.3,4608.9,1.01072]
[1759758697539,0.00171454,4609.3,4609.2,3.2078]
[1759758698446,0.3904,4609.2,4608.9,0.00257999]
[1759758698639,0.6207,4609.0,4608.9,0.00257999]
[1759758698840,0.8622,4609.0,4608.9,0.00257999]
[1759758699747,0.6207,4609.0,4608.9,0.00257999]
[1759758699945,0.8622,4609.0,4608.9,0.00257999]
[1759758700141,1.0832,4609.0,4608.9,0.00257999]
[1759758700948,0.39049,4608.2,4608.1,3.2078]
[1759758701148,1.23219,4608.2,4608.1,3.2078]
[1759758701944,8.61323351,4608.2,4607.4,3.2078]
[1759758702147,0.2415,4608.0,4607.4,3.2078]
[1759758702349,0.6207,4607.5,4607.4,3.2078]
[1759758702545,1.0832,4607.5,4607.4,3.2078]
[1759758703252,0.2415,4608.0,4607.7,0.39052]
[1759758703454,3.2078,4608.3,4608.0,0.3905]
[1759758703752,0.6207,4608.1,4607.8,0.39052]
[1759758703953,0.6207,4608.1,4608.0,0.3905]
[1759758704161,0.6207,4608.6,4608.0,3.2078]
[1759758704350,0.221,4608.9,4608.7,0.39044]
[1759758704547,0.00171454,4609.3,4608.6,0.6203]
[1759758704756,0.00171454,4609.3,4609.1,1.0107]
[1759758705057,0.00171454,4609.3,4609.2,0.6203]
[1759758705555,0.00171454,4609.3,4609.2,5.6203]
[1759758706151,3.2078,4610.6,4609.5,0.97595]
[1759758706347,3.2078,4610.6,4609.8,0.6203]
[1759758706752,0.39035,4609.8,4609.2,3.5982]
[1759758706956,0.39035,4609.9,4609.2,3.5982]
[1759758707253,0.39036,4609.8,4609.0,0.39041]
[1759758707456,0.39037,4609.6,4609.0,0.39041]
[1759758707653,0.6207,4609.8,4609.2,0.3904]
[1759758707854,0.00157473,4609.9,4609.4,0.39038]
[1759758708057,0.39035,4609.8,4609.3,3.2078]
[1759758708258,0.6336,4609.4,4609.3,3.2078]
[1759758708551,0.00157473,4609.9,4609.5,0.39037]
[1759758708756,0.00157473,4609.9,4609.4,1.03078]
[1759758709055,0.00157473,4609.9,4609.7,0.39036]
[1759758709252,0.00157473,4609.9,4609.8,0.6404]
[1759758709848,0.00157473,4609.9,4609.8,8.8482]
[1759758710158,0.102,4611.3,4610.9,0.39025]
[1759758710353,0.102,4611.3,4610.9,3.59805]
[1759758710549,3.8414,4611.9,4610.9,3.8482]
[1759758710755,0.6336,4611.7,4611.3,0.39022]
[1759758710953,0.00188326,4611.7,4611.5,0.3902]
[1759758711259,0.6336,4611.6,4611.4,0.39021]
[1759758711562,0.00188326,4611.7,4611.5,0.3902]
[1759758712049,0.00188326,4611.7,4611.6,0.6404]
[1759758713053,0.022,4612.9,4612.7,0.3901]
[1759758713364,0.022,4612.9,4612.7,3.5979]
[1759758713860,0.6336,4612.8,4611.6,3.2078]
[1759758714059,0.00224867,4612.8,4612.1,3.8482]
[1759758714254,0.00224867,4612.8,4612.6,0.39011]
[1759758714661,0.6336,4612.7,4612.5,0.39012]
[1759758714964,0.00224867,4612.8,4612.6,0.39011]
[1759758715159,0.00224867,4612.8,4612.6,3.59791]
[1759758715358,0.00224867,4612.8,4612.7,0.6404]
[1759758715753,0.00224867,4612.8,4612.6,3.59791]
[1759758715957,0.00224867,4612.8,4612.6,3.2078]
[1759758716163,0.6336,4612.7,4612.6,3.59791]
[1759758716554,0.6336,4612.7,4612.1,3.8482]
[1759758716759,0.2326,4612.5,4612.1,3.2078]
[1759758716956,0.6336,4612.2,4611.7,0.39019]
[1759758717159,0.6336,4612.2,4611.6,3.2078]
[1759758717658,0.63584867,4612.8,4612.4,0.39013]
[1759758717863,0.00224867,4612.8,4612.6,0.39011]
[1759758718061,0.00224867,4612.8,4612.1,3.2078]
[1759758718062,0.6336,4612.7,4612.4,0.39013]
[1759758718263,0.6336,4612.7,4612.5,0.39012]
[1759758718953,0.00224867,4612.8,4612.7,1.0305]
[1759758719159,0.6336,4613.9,4612.7,4.2383]
[1759758719360,3.2078,4614.0,4613.5,0.39003]
[1759758719361,3.4404,4614.0,4613.5,0.39003]
[1759758719564,3.2078,4614.0,4613.4,0.6404]
[1759758719760,3.2078,4614.0,4613.8,0.39001]
[1759758719959,3.2078,4614.0,4613.2,3.2078]
[1759758719960,3.2078,4614.7,4614.0,1.61539]
[1759758720161,3.84330644,4614.7,4614.5,0.38995]
[1759758720459,0.00190644,4614.7,4614.6,3.8482]
[1759758720660,0.00190644,4614.7,4614.6,3.84989473]
[1759758720866,0.221,4615.8,4614.6,8.84989473]
[1759758721063,0.221,4615.8,4615.6,1.03025]
[1759758721859,0.22252365,4615.8,4615.6,1.03025]
[1759758722157,0.22252365,4615.8,4615.6,0.38985]
[1759758722354,0.00152365,4615.8,4615.7,3.8482]
[1759758722557,4.074,4617.0,4615.7,8.8482]
[1759758722866,4.074,4617.0,4616.3,0.3898]
[1759758723164,4.074,4617.0,4616.2,3.2078]
[1759758723558,0.38976,4616.9,4616.2,3.2078]
[1759758723760,0.6336,4616.4,4615.0,44.0078]
[1759758724055,0.62247,4615.5,4615.0,3.2078]
[1759758724257,0.6336,4615.3,4615.0,3.2078]
[1759758724559,0.38989,4615.3,4615.0,3.2078]
[1759758724957,0.221,4615.4,4615.0,3.59771]
[1759758725159,0.6336,4615.3,4615.2,0.38989]
[1759758725354,3.2078,4615.3,4614.6,0.00169473]
[1759758725554,0.6336,4614.7,4614.6,0.00169473]
[1759758726358,1.20747,4614.6,4613.6,3.2078]
[1759758726556,0.6336,4613.9,4612.9,3.2078]
[1759758726756,6.63875479,4614.5,4613.5,0.6404]
[1759758726961,0.39002,4613.8,4613.4,3.2078]
[1759758727269,0.6336,4613.8,4613.4,0.39004]
[1759758727462,0.6336,4613.5,4613.4,0.00197139]
[1759758727767,0.63616387,4613.5,4613.4,0.00197139]
[1759758727964,5.63616387,4613.5,4613.4,0.00197139]
[1759758728161,5.63616387,4613.5,4612.9,3.2078]
[1759758728365,5.63616387,4613.5,4611.8,3.2078]
[1759758728366,0.2326,4612.8,4611.8,3.2078]
[1759758728669,0.221,4612.7,4612.0,0.6404]
[1759758728864,0.221,4612.7,4612.5,0.39012]
[1759758729060,0.6336,4612.6,4612.4,3.2078]
[1759758729260,0.6336,4612.6,4612.4,0.00223034]
[1759758729461,3.8414,4612.5,4612.4,0.00223034]
[1759758730864,3.2078,4612.5,4612.4,0.64263034]
[1759758731465,0.221,4613.0,4612.9,0.39009]